Cogmind - Beta 9.3 @@@ ROGUE MODE // 2019.12.17 @ 21:14:05 // Winter2019/RPGLIKE Player: Terminus Result: Self-destructed Performance ------------- Evolutions (1) 500 Regions Visited (5) 1000 Robots Destroyed (98) 490 Value Destroyed (2494) 2494 Prototype IDs (28) 560 Alien Tech Used (0) 0 Bonus (284) 284 TOTAL SCORE: 5328 Bonus ------- High Alert Combat Kills 158 Aligned with FarCom 300 Friendly Fire -174 Cogmind --------- Core Integrity 171/900 Matter 92/300 Energy 280/280 System Corruption 1% Temperature Cool (0) Movement Flying (30) Location -9/Exiles Parts ------- > --- POWER (1) -------- Cooled Ion Engine > --- PROPULSION (3) --- Flight Unit Improved Flight Unit Improved Flight Unit > --- UTILITY (7) ------ Improved Heat Sink Improved Heat Sink Improved Signal Interpreter Improved Targeting Computer Improved Targeting Computer Armor Integrity Analyzer Hacking Suite > --- WEAPON (3) ------- Improved EM Shotgun Rocket Launcher > --- INVENTORY (5) ---- Light EM Pulse Cannon Peak State ------------ > --- POWER ------------ Cooled Ion Engine > --- PROPULSION ------- Flight Unit Improved Flight Unit Improved Flight Unit > --- UTILITY ---------- Improved Heat Sink Improved Heat Sink Improved Signal Interpreter Improved Targeting Computer Improved Targeting Computer Armor Integrity Analyzer Hacking Suite > --- WEAPON ----------- EM Shotgun Improved EM Shotgun Beam Cannon > --- INVENTORY -------- Light EM Pulse Cannon Rocket Launcher Plasma Cutter Deploy-a-Sentry [Rating: 34] Favorites ----------- Power Cooled Ion Engine Engine Cooled Ion Engine Propulsion Flight Unit Flight Unit Flight Unit Utility Improved Heat Sink Device Improved Heat Sink Processor Improved Targeting Computer Hackware Hacking Suite Weapon Beam Cannon Energy Gun Improved EM Shotgun Energy Cannon Beam Cannon Ballistic Gun Assault Rifle Ballistic Cannon Light Cannon Launcher Rocket Launcher Build | -11 -10 -10 -9 -9 -9 ------- Run | Scr Mat Min Mat Min Exi Slots Evolved 10 | 4 1 1 4 . . Power . | . . . . . . Propulsion 2 | 1 . . 1 . . Utility 6 | 2 1 1 2 . . Weapon 2 | 1 . . 1 . . Parts Attached 39 | 4 14 5 15 . 1 Power 4 | 1 . . 3 . . Engine 4 | 1 . . 3 . . Core . | . . . . . . Reactor . | . . . . . . Propulsion 6 | . 2 . 4 . . Treads . | . . . . . . Leg . | . . . . . . Wheel . | . . . . . . Hover . | . . . . . . Flight 6 | . 2 . 4 . . Utility 13 | . 4 5 4 . . Device 6 | . 2 4 . . . Storage . | . . . . . . Processor 6 | . 1 1 4 . . Hackware 1 | . 1 . . . . Protection . | . . . . . . Artifact . | . . . . . . Weapon 16 | 3 8 . 4 . 1 Energy Gun 4 | 1 . . 3 . . Energy Cannon 4 | . 3 . 1 . . Ballistic Gun 4 | 2 2 . . . . Ballistic Cannon 3 | . 3 . . . . Launcher 1 | . . . . . 1 Special Weapon . | . . . . . . Impact Weapon . | . . . . . . Slashing Weapon . | . . . . . . Piercing Weapon . | . . . . . . Special Melee Weapon . | . . . . . . Unidentified Prototypes 5 | . . . 5 . . Parts Lost 2 | . . . . . 2 Power . | . . . . . . Propulsion . | . . . . . . Utility . | . . . . . . Weapon 2 | . . . . . 2 Highest Loss Streak 2 | . . . . . 2 Average Slot Usage (%) 92 | . 70 97 96 100 94 Engine 8 | . 11 10 7 7 7 Flight 20 | . 14 20 21 21 21 Device 15 | . 9 23 14 14 14 Processor 20 | . 7 13 22 28 28 Hackware 6 | . 2 10 7 7 7 Energy Gun 5 | . . . 6 14 10 Energy Cannon 10 | . 6 20 13 7 3 Ballistic Gun 1 | . 9 . . . . Ballistic Cannon 1 | . 8 . . . . Naked Turns . | . . . . . . Heaviest Build 19 | 7 14 14 19 19 19 Greatest Support 26 | 13 18 18 26 26 26 Greatest Overweight (x) . | . . . . . . Average Overweight (x) . | . . . . . . Largest Inventory Capacity 5 | 1 1 1 4 4 5 Average Capacity 2 | . 1 1 2 4 4 Most Carried 4 | 1 1 1 4 4 4 Average Carried 2 | . 1 . 2 4 2 Final Capacity 5 | 1 1 1 4 4 5 Final Carried 4 | 1 1 1 4 4 1 Class Distribution -------------------- 55% | Sprinter 26% | Scavenger-Mutant 16% | Mutant Dominant Class ---------------- Mutant | -10/Materials Scavenger-Mutant | -10/Mines Sprinter | -9/Materials Sprinter | -9/Mines Sprinter | -9/Exiles Resources | -11 -10 -10 -9 -9 -9 ----------- Run | Scr Mat Min Mat Min Exi Matter Collected 800 | 231 325 94 150 . . Remotely . | . . . . . . Salvage Created 2834 | . 595 268 1724 133 114 Parts 182 | . 43 18 113 4 4 Haulers Intercepted 8 | . 2 . 6 . . Recyclers Shooed 1 | . . . 1 . . Parts Field Recycled . | . . . . . . Retrieved Matter . | . . . . . . Parts Self-Destructed . | . . . . . . Prevented . | . . . . . . Kills | -11 -10 -10 -9 -9 -9 ------- Run | Scr Mat Min Mat Min Exi Combat Hostiles Destroyed 73 | . 15 10 37 5 6 Guns 16 | . 6 . 8 2 . Cannons 49 | . 9 10 28 2 . AOE 8 | . . . 1 1 6 Classes Destroyed 14 | . 7 1 3 . 3 Worker 2 | . . . 2 . . Builder 1 | . 1 . . . . Hauler 8 | . 2 . 6 . . Recycler 3 | . 1 . 2 . . Operator 3 | . 1 . 2 . . Turret 1 | . . . . . 1 Watcher 6 | . 2 . 4 . . Swarmer 21 | . 6 5 7 3 . Grunt 32 | . 9 3 19 1 . Brawler 2 | . . . 1 1 . Sentry 10 | . . . 10 . . Hunter 2 | . . . . . 2 Programmer 4 | . . . . . 4 Assembled 2 | . . 2 . . . Thug 1 | . . 1 . . . Best Kill Streak 10 | . 10 3 10 3 5 Combat Bots Only 8 | . 8 3 8 3 5 Max Kills in Single Turn 2 | . 2 1 2 2 2 Gunslinging . | . . . . . . Exploded 2 | . . . 1 1 2 Melee . | . . . . . . Uniques/NPCs Destroyed . | . . . . . . Combat | -11 -10 -10 -9 -9 -9 -------- Run | Scr Mat Min Mat Min Exi Damage Taken 2927 | . 457 246 1400 33 791 Core 2336 | . 359 204 1130 28 615 Absorbed by Shields . | . . . . . . Redirected to Core 1859 | . 305 126 916 16 496 Core Remaining (%) 100 | 100 . 100 . . . Volleys Fired 261 | . 52 28 125 6 50 Largest 3 | . 2 2 3 3 3 Hottest 165 | . 120 120 165 150 150 Shots Fired 530 | . 104 56 286 18 66 Gun 177 | . 42 . 77 12 46 Cannon 335 | . 62 56 209 6 2 Launcher 18 | . . . . . 18 Special . | . . . . . . Kinetic 73 | . 73 . . . . Thermal 304 | . 31 56 209 6 2 Explosive 18 | . . . . . 18 Electromagnetic 135 | . . . 77 12 46 Robot Hit Streak 28 | . 14 5 28 10 17 Robot Miss Streak 5 | . 3 3 5 2 2 Penetration Max . | . . . . . . Secondary Targets . | . . . . . . Shots Hit Robots 351 | . 62 28 190 13 58 Core Hits 149 | . 27 15 74 9 24 Critical Hits 5 | . . . 3 . 2 Critical Kills 1 | . . . 1 . . Critical Parts Destroyed 3 | . . . 2 . 1 Melee Attacks . | . . . . . . Impact . | . . . . . . Slashing . | . . . . . . Piercing . | . . . . . . Sneak Attacks . | . . . . . . Combat Hostiles . | . . . . . . Follow-up Attacks . | . . . . . . Damage Inflicted 6006 | . 864 535 3188 444 975 Guns 1336 | . 267 . 801 125 143 Cannons 3423 | . 597 535 2220 53 18 Explosions 1247 | . . . 167 266 814 Melee . | . . . . . . Ramming . | . . . . . . Kinetic 691 | . 691 . . . . Thermal 3438 | . 173 535 2387 319 24 Explosive 808 | . . . . . 808 Electromagnetic 1069 | . . . 801 125 143 Impact . | . . . . . . Slashing . | . . . . . . Piercing . | . . . . . . Highest Corruption 1 | . . . . . 1 Average Corruption 1 | . . . . . 1 Corruption Purged . | . . . . . . Effects 1 | . . . . . 1 Targeting Errors 1 | . . . . . 1 Overload Shots . | . . . . . . Overflow Damage 61 | . . . . 50 11 Projectiles . | . . . . . . Explosions 61 | . . . . 50 11 Melee . | . . . . . . Knockbacks 6 | . 6 . . . . Impact . | . . . . . . Kinetic 6 | . 6 . . . . Secondary . | . . . . . . Self-Inflicted Damage 98 | . . . 58 . 40 Shots 3 | . . . 2 . 1 Rammed . | . . . . . . Targets Rammed . | . . . . . . Kicked . | . . . . . . Crushed . | . . . . . . Highest Temperature 129 | . 6 . 129 . . Average Temperature 28 | . 2 . 30 . . Received Heat Transfer 747 | . 180 63 492 12 . Siege Activations . | . . . . . . Robots Corrupted 1 | . . . . . 1 Combat Hostiles . | . . . . . . Parts Fried 2 | . . . 2 . . Impact Corruptions . | . . . . . . Robots Melted . | . . . . . . Combat Hostiles . | . . . . . . Parts Melted 11 | . . 1 10 . . Heat Transferred 6876 | . 370 1147 4799 511 49 Parts Sabotaged . | . . . . . . Parts Stolen . | . . . . . . Parts Stripped . | . . . . . . Power Chain Reactions 5 | . . . 3 1 1 Missiles Intercepted . | . . . . . . Alert | -11 -10 -10 -9 -9 -9 ------- Run | Scr Mat Min Mat Min Exi Peak Influence 712 | . 575 399 712 375 . Average Influence 319 | . 274 331 346 313 . Maximum Alert Level 3 | . 2 1 3 1 . Low Security (%) 21 | 100 30 4 28 . . Level 1 50 | . 43 95 20 100 . Level 2 27 | . 25 . 49 . . Level 3 . | . . . 1 . . Level 4 . | . . . . . . Level 5 . | . . . . . . High Security . | . . . . . . Max Security . | . . . . . . Squads Dispatched 7 | . 2 . 5 . . Investigation 4 | . 2 . 2 . . Extermination . | . . . . . . Reinforcement 3 | . . . 3 . . Assault . | . . . . . . Garrison . | . . . . . . Intercept . | . . . . . . Construction Impeded . | . . . . . . Haulers Reinforced . | . . . . . . Stealth | -11 -10 -10 -9 -9 -9 --------- Run | Scr Mat Min Mat Min Exi Distress Signals 8 | . 1 1 6 . . Communications Jammed . | . . . . . . Distress Signals . | . . . . . . Times Spotted 120 | . 22 12 61 5 20 Peak Tracking Total 14 | . 4 3 10 3 14 Tactical Retreats 6 | . . . 4 . 2 Traps | -11 -10 -10 -9 -9 -9 ------- Run | Scr Mat Min Mat Min Exi Traps Triggered 1 | . . . 1 . . Indirectly . | . . . . . . Trap Hack Attempts . | . . . . . . Triggered . | . . . . . . Disarmed . | . . . . . . Reprogrammed . | . . . . . . Reused . | . . . . . . Traps Extracted . | . . . . . . Installed . | . . . . . . Triggered . | . . . . . . Machines | -11 -10 -10 -9 -9 -9 ---------- Run | Scr Mat Min Mat Min Exi Machines Disabled 13 | . 4 2 . 3 4 Max in Single Turn 2 | . 1 1 . 2 1 Machines Sabotaged . | . . . . . . Garrisons Compromised . | . . . . . . Overloaded Fab Kills . | . . . . . . Fab Network Shutdowns . | . . . . . . Hacking | -11 -10 -10 -9 -9 -9 --------- Run | Scr Mat Min Mat Min Exi Machines Accessed 17 | . 7 1 8 . 1 Terminals 13 | . 5 1 7 . . Fabricators . | . . . . . . Repair Stations . | . . . . . . Recycling Units 3 | . 2 . 1 . . Scanalyzers . | . . . . . . Garrison Access . | . . . . . . Total Hacks 48 | . 20 2 25 . 1 Successful 36 | . 12 2 21 . 1 Failed 12 | . 8 . 4 . . Catastrophic 1 | . 1 . . . . Database Lockouts . | . . . . . . Manual 39 | . 14 2 22 . 1 Terminals 40 | . 14 2 24 . . Fabricators . | . . . . . . Repair Stations . | . . . . . . Recycling Units 7 | . 6 . 1 . . Scanalyzers . | . . . . . . Garrison Access . | . . . . . . Terminal Hacks 18 | . 4 . 13 . 1 Prototype ID Bank 1 | . . . 1 . . Alert Level 3 | . 1 . 2 . . Unreport Threat 4 | . . . 4 . . Hauler Manifests 2 | . 1 . 1 . . Zone Layout 7 | . 2 . 5 . . EX-Prototype ID Bank 1 | . . . . . 1 Fabricator Hacks . | . . . . . . Repair Station Hacks . | . . . . . . Recycling Unit Hacks 3 | . 3 . . . . Retrieve Components 3 | . 3 . . . . Scanalyzer . | . . . . . . Garrison Access Hacks . | . . . . . . Unauthorized Hacks 35 | . 15 4 16 . . Terminals 12 | . 3 2 7 . . Track 2 | . . 1 1 . . Assimilate 2 | . . . 2 . . Botnet 8 | . 3 1 4 . . Fabricators . | . . . . . . Repair Stations . | . . . . . . Recycling Units 3 | . 2 . 1 . . Tunnel 3 | . 2 . 1 . . Scanalyzers . | . . . . . . Garrison Access . | . . . . . . Data Cores Recovered 1 | . 1 . . . . Used . | . . . . . . Hacking Detections 10 | . 5 1 4 . . Full Trace Events 1 | . 1 . . . . Feedback Events . | . . . . . . Feedback Blocked . | . . . . . . Robot Schematics Acquired . | . . . . . . Robots Built . | . . . . . . Matter . | . . . . . . Time . | . . . . . . Total Robot Build Rating . | . . . . . . Part Schematics Acquired . | . . . . . . Parts Built . | . . . . . . Matter . | . . . . . . Time . | . . . . . . Total Part Build Rating . | . . . . . . Parts Repaired . | . . . . . . Time . | . . . . . . Parts Recycled . | . . . . . . Recycled Matter . | . . . . . . Retrieved Matter . | . . . . . . Retrieved Components . | . . . . . . Parts Scanalyzed . | . . . . . . Part Schematics Acquired . | . . . . . . Parts Damaged . | . . . . . . Bothacking | -11 -10 -10 -9 -9 -9 ------------ Run | Scr Mat Min Mat Min Exi Used RIF Installer . | . . . . . . Robots Hacked . | . . . . . . Non-combat . | . . . . . . Combat . | . . . . . . Robot Hacks Applied . | . . . . . . Relay Couplers Released . | . . . . . . Robots Rewired . | . . . . . . Allies Hacked . | . . . . . . Hacks Repelled . | . . . . . . Allies | -11 -10 -10 -9 -9 -9 -------- Run | Scr Mat Min Mat Min Exi Total Allies 7 | . . . 2 5 . Largest Group 5 | . . . 1 5 5 Highest-Rated Group 91 | . . . 10 91 91 Highest-Rated Ally 31 | . . . 10 31 31 Total Orders . | . . . . . . Ally Attacks 15 | . . . . 2 13 Total Damage 278 | . . . . 22 256 Kills . | . . . . . . Allies Corrupted . | . . . . . . Allies Melted . | . . . . . . Turrets Deployed 2 | . . . . . 2 Intel | -11 -10 -10 -9 -9 -9 ------- Run | Scr Mat Min Mat Min Exi Robot Analysis Total . | . . . . . . Derelict Logs Recovered 3 | . . 1 . 2 . Drone Launches . | . . . . . . Drone Recoveries . | . . . . . . Exploration | -11 -10 -10 -9 -9 -9 ------------- Run | Scr Mat Min Mat Min Exi Turns Passed 2583 | 27 430 412 931 272 511 Spaces Moved 3448 | 41 510 550 1324 605 418 Core 81 | 41 40 . . . . Treads . | . . . . . . Legs . | . . . . . . Wheels . | . . . . . . Hover . | . . . . . . Flight 3367 | . 470 550 1324 605 418 Fastest Speed 30 | 50 37 37 30 30 30 Average Speed 33 | 50 39 37 31 30 30 Slowest Speed 50 | 50 50 37 37 30 30 Overloaded Moves . | . . . . . . Propulsion Burnouts . | . . . . . . Robots Hopped 28 | . 6 5 15 2 . Cave-ins Triggered . | . . . . . . Exploration Rate (%) 72 | 4 94 81 96 98 62 Regions Visited 5 Branch Regions 3 Pre-discovered Areas 3 | . 2 . 1 . . Known Exits Taken 2 | . . . 1 1 . Unknown Exits Taken 3 | 1 1 1 . . . Scrap Searched 3 | . . 2 . 1 . Spaces Dug . | . . . . . . Terrain Destroyed 90 | . . . 9 22 59 Melee . | . . . . . . Projectile . | . . . . . . AOE 90 | . . . 9 22 59 Actions | -11 -10 -10 -9 -9 -9 --------- Run | Scr Mat Min Mat Min Exi Total 4370 | 45 628 698 1579 679 741 Wait 527 | . 36 98 56 71 266 Move 3389 | 40 497 540 1294 600 418 Hop 26 | . 6 4 14 2 . Pick Up 6 | . . 1 3 . 2 Fast Attach 34 | 4 13 2 15 . . Attach 1 | . . . . . 1 Detach 1 | 1 . . . . . Swap 4 | . 1 3 . . . Drop 28 | . 8 5 11 . 4 Fire 261 | . 52 28 125 6 50 Melee . | . . . . . . Ram . | . . . . . . Kick . | . . . . . . Crush . | . . . . . . Escape Stasis . | . . . . . . Rewire . | . . . . . . Trap . | . . . . . . Miscellaneous 93 | . 15 17 61 . . Route ------- -11/Scrapyard -10/Materials (discovered 5 exits: *Mat x3 / *Min x2) -10/Mines -9/Materials (discovered 3 exits: *Mat x2 / *Min) -9/Mines (discovered 3 exits: *Mat x2 / *Exi) -9/Exiles (discovered 1 exit: [*Min]) History --------- Turn | Location | Event 3 | -11/Scrapyard | Discovered new exit (range 16) 5 | -11/Scrapyard | Upgraded with Propulsion slot (x1) 5 | -11/Scrapyard | Upgraded with Utility slot (x2) 5 | -11/Scrapyard | Upgraded with Weapon slot (x1) 28 | -11/Scrapyard | Entered Materials 135 | -10/Materials | Discovered new exit (range 15) 175 | -10/Materials | Discovered new exit (range 3) 224 | -10/Materials | Discovered new exit (range 5) 300 | -10/Materials | Build established: Mutant 301 | -10/Materials | Reached level 2 312 | -10/Materials | Upgraded with Utility slot (x1) 348 | -10/Materials | Destroyed 8 combat bots 376 | -10/Materials | Discovered new exit (range 8) 438 | -10/Materials | Discovered new exit (range 15) 458 | -10/Materials | Entered Mines 459 | -10/Mines | Assembled infested the area 460 | -10/Mines | Reached level 3 468 | -10/Mines | Met a Derelict bent on vengeance 473 | -10/Mines | Upgraded with Utility slot (x1) 616 | -10/Mines | Learned Materials stockpile data 715 | -10/Mines | Build established: Scavenger-Mutant 718 | -10/Mines | Received a Rocket Launcher from a helpful Derelict 827 | -10/Mines | Discovered new exit (range 15) 870 | -10/Mines | Entered Materials 872 | -9/Materials | Reached level 4 873 | -9/Materials | Upgraded with Propulsion slot (x1) 873 | -9/Materials | Upgraded with Weapon slot (x1) 946 | -9/Materials | Reached level 5 962 | -9/Materials | Upgraded with Utility slot (x1) 1036 | -9/Materials | Destroyed 8 combat bots 1097 | -9/Materials | Reached level 6 1280 | -9/Materials | Discovered new exit (range 10) 1420 | -9/Materials | Reached level 7 1450 | -9/Materials | Build established: Sprinter 1473 | -9/Materials | Discovered new exit (range 8) 1505 | -9/Materials | Discovered new exit (range 9) 1681 | -9/Materials | Reached level 8 1686 | -9/Materials | Upgraded with Utility slot (x1) 1801 | -9/Materials | Identified exit to Mines 1801 | -9/Materials | Entered Mines 1828 | -9/Mines | Learned 4 Materials zone layouts 1837 | -9/Mines | Learned Materials terminal intel 1964 | -9/Mines | Discovered new exit (range 9) 1966 | -9/Mines | Discovered new exit (range 13) 1966 | -9/Mines | Identified exit to Materials 1984 | -9/Mines | Assisted by bots powering up and referring to "LRC-V3" 2006 | -9/Mines | Deemed a non-threat by the Exiles lab entrance 2006 | -9/Mines | Discovered new exit (range 5) 2007 | -9/Mines | Identified exit to Exiles 2073 | -9/Mines | Entered Exiles 2073 | -9/Exiles | Accompanied by 5 allies 2077 | -9/Exiles | Discovered new exit (range 15) 2081 | -9/Exiles | Met 8R-AWN 2086 | -9/Exiles | Met EX-HEX 2094 | -9/Exiles | Met EX-BIN 2098 | -9/Exiles | Aligned with FarCom system 2098 | -9/Exiles | Given EX-Vault access code 2103 | -9/Exiles | Led the pair of lost Derelicts to a safe place 2160 | -9/Exiles | Met EX-DEC 2174 | -9/Exiles | Opened EX-Vault 2176 | -9/Exiles | Found Deploy-a-Sentry 2178 | -9/Exiles | Found Deploy-a-Sentry 2185 | -9/Exiles | Warned to stay clear of 0b10 Research branches 2190 | -9/Exiles | Exiles lab attacked by MAIN.C 2239 | -9/Exiles | DAS Turret deployed 2241 | -9/Exiles | DAS Turret deployed 2248 | -9/Exiles | Attacked by the Exiles 2259 | -9/Exiles | Core integrity fell below 50% 2314 | -9/Exiles | Core integrity fell below 20% 2469 | -9/Exiles | Reached level 9 2584 | -9/Exiles | Self-destructed Last Messages --------------- 02529_ P-60 Hacker hacks 8R-AWN, rebooting. 02541_ Slug penetrates 8R-AWN. 02545_ P-60 Hacker fails to hack 8R-AWN. 02553_ H-55 Commando destroyed. 02554_ P-60 Hacker fails to hack 8R-AWN. 02555_ P-60 Hacker destroyed. 02555_ P-60 Hacker hacks 8R-AWN, rebooting. 02558_ P-60 Hacker resets P-60 Hacker, system corruption cleaned. 02559_ P-60 Hacker destroyed. 02560_ The unstable cave ceiling collapses. 02561_ 8R-AWN reactivates. 02563_ P-60 Hacker fails to hack 8R-AWN. 02567_ Destroyed Shock Rifle. 02569_ Destroyed Lgt. Angular Momentum Engine. 02571_ The unstable cave ceiling collapses. 02575_ System corrupted: Rocket Launcher targeting data glitched. 02576_ P-60 Hacker fails to hack 8R-AWN. 02577_ P-60 Hacker destroyed. 02578_ The unstable cave ceiling collapses. 02584_ G-34 Mercenary destroyed. Map ----- +----------------------------------------------------+ | ?????????????????????????????????????????????????? | | ????????????????????????????????????????????????## | | ???????????????????????? ???????????????????????"" | | ???????????????????????? ??????????????????????""" | | ???????????????????????? ?????????????????????#""X | | ???????????????????????? ?????????????????????#" | | ???????????????????????? #????????????????????#" | | ???????????????????????? #????????????????????#""" | | ???????????????????????? #?????????????????????#"# | | ???????????????????????# #???????????????????????? | | ??????????????????????? #???????????????????????? | | ??????????????????????? #???????????????????????? | | ?????? ??????????????###;###?????????????????????? | | ?????? ######???????#!!! "#?????????????????????? | | ????? # "#??????# "#?????????????????????? | | ?????? ??????# "#?????????????????????? | | ?????" #????## " #????????????#####????? | | ?????? ##### #???????????? """????? | | ??????# % ## "#????????????" """????? | | ???????# # ;#????????????" ????? | | ??????????# #???#???????"" #???? | | ????????????## #### ###?????"" "#???? | | ?????????????### # #????? ""????? | | ???????######## #??????" "?????? | | ???????# !!"""" # #???# #?????? | | ???????#! # g @ #### ###?### | | ???????#! "# #X# #"###"" | | ???????#! #### """""" | | ???????# !"" """###??## "" """ | | ???????##########?????## " " | | ???????????????????????## % | | ????????????????????????## % * | | ??????????????????????????#### [ p ! = | | ??????????????????????????????## =%! %[ | | ???????????????????????????????##" * p * | | ????????????????????????????????#"" | | ????????????????????????????????#" | | ???????????????????????????????# "" | | ???????????????????????????????# """# | | ??????????????????????????????#" """## | | ??????????????????????????????#""" ""#? | | ??????????????????????????????#"" ##? | | ??????????????????????????????#""" ?? | | ???????????????????????????????"" ? | | ??????????????????????????????##" | | ???????????????????????????????#"""" | | ???????????????????????????????## | | ????????????????????????????????#" | | ?????????????????????????????????"""" | | ??????????????????????????????????? | +----------------------------------------------------+ Best States ------------- Heat Dissipation 71 Energy Generation 19 Energy Capacity 280 Matter Stores 300 Matter Capacity 300 Sight Range 16 Terrain Scan Density 10 Evasion (%) 64 Targeting Accuracy 17 Armor Integrity Analysis 33 Offensive Hacking 10 Item Schematics ----------------- None Robot Schematics ------------------ None Fabricated ------------ Nothing Alien Tech Used ----------------- None Achievements -------------- None Challenges ------------ None RPGLIKE | -11 -10 -10 -9 -9 -9 --------- Run | Scr Mat Min Mat Min Exi Levels Raised 8 | . 1 1 5 . 1 XP Earned 15303 | 3000 2501 1650 6659 941 552 XP Spent 14960 | 2970 1100 1400 7910 . 1580 Upgrades 27 | 9 1 1 10 . 6 Propulsion Slot 2 | 1 . . 1 . . Utility Slot 6 | 2 1 1 2 . . Weapon Slot 2 | 1 . . 1 . . Core Integrity 6 | . . . 2 . 4 Heat Dissipation 3 | 2 . . . . 1 Energy Generation 1 | . . . 1 . . Mass Support 2 | 2 . . . . . Inventory Capacity 5 | 1 . . 3 . 1 Protomatter Created 976 | . 134 100 717 1 24 Integrity Restored 1906 | . 345 297 1264 . . Core 1607 | . 345 218 1044 . . Parts 299 | . . 79 220 . . Protomatter Decayed 617 | . 19 121 287 1 189 Game ------ Seed LatentGammaWings Manual? 0 Play Time 00:36:30 Cumulative 971.7 hours Start 2019.12.17 @ 20:42:06 End 2019.12.17 @ 21:14:05 Sessions 1 Manual Loads 0 Difficulty Rogue Special Mode Winter2019/RPGLIKE Game No. 312 Rogue 312 Adventurer 0 Explorer 0 Win Type - Total 70 Types 14/6/32/3/1/2/12 Lore% 97 Gallery% 95 Achievement% 82 Wizard Run 0 Options --------- ASCII 0 Keyboard 0 Movement Numpad Keybinds 0 Fullscreen 1 Font 18/SmallcapsGlow Map View 76x50 Tactical HUD 1 Map Filters NONE Filters NONE Steam 1 RUN: 5754f96c-3f57-43cf-8c82-2a879a90eec8